Workbook

Sheet Introduction
A3: . . . . . . . . . . . . . . . . . . . . . . . . . . . . . . . . . . . . . . . . . . . . . . . . .
B5: Guidelines For Estimating
B6: Swine (26 to 123 kg) Finishing Costs
B7: ="Based On Marketing "&FIXED('Finish Input'!G32,0)&" Pigs " -> Based On Marketing 11,376 Pigs
F12: Date: | G12: June, 2025
B17: This guide is designed to provide you with planning information and a format for calculating costs of production of a swine finishing 26 to 123 kg enterprise in Manitoba. This type of operation is intended to represent the third stage of a three stage pork system. General Manitoba Agriculture recommendations are assumed in using feed and veterinary inputs. These figures provide an economic evaluation of the livestock and estimated prices required to cover all costs. Costs include labour, investment and depreciation, but do not include management costs, nor do they necessarily represent the average cost of production in Manitoba.
B28: These budgets may be adjusted by putting in your own figures. As a producer you are encouraged to calculate your own costs of production. The assumptions on which the costs are based are outlined in the supporting pages. These assumptions were arrived at using the breeding stock, management practices, and facilities seen in modern, well managed swine operations of comparable size in Manitoba. Productivity and performance assumptions are based on information collected by department specialists, feed companies and other organizations. Where individual herd productivity and performance levels differ from those listed, adjustments will be required.
B41: This tool is available as an Excel worksheet at:
B48: is also available to help
B49: determine machinery costs.
B57: Note: This budget is only a guide and is not intended as an in-depth study of the cost of production of this industry. Interpretation and use of this information is the responsibility of the user. If you need help with a budget, contact a Farm Management Specialist.

Sheet Assumptions
A2: Swine (26 to 123 kg) Finishing Cost of Production
A5: ="The following 26 to 123 kg budget is based on the assumption that all feed is purchased or home-mixed. The budget includes a land investment cost for "&'Fixed Cost'!D27&" acres, with "&'Fixed Cost'!C40&" acres rented out at $"&'Fixed Cost'!C41&" per acre, of the estimated "&ROUND(((('Finish Input'!C108*'Finish Input'!H110)/(40.768*2))*2.4709661),0)&" to "&ROUND(((('Finish Input'!C108*'Finish Input'!H110)/(26.362*2))*2.4709661),0)&" acres of total landbase that would be required for this size of livestock operation. This land base falls within the 2XP2O5 application rate, soil phosphorus levels permitting." -> The following 26 to 123 kg budget is based on the assumption that all feed is purchased or home-mixed. The budget includes a land investment cost for 40 acres, with 0 acres rented out at $100 per acre, of the estimated 232 to 358 acres of total landbase that would be required for this size of livestock operation. This land base falls within the 2XP2O5 application rate, soil phosphorus levels permitting.
A11: ="The budget includes an assumption that 1.5% of the market pigs are sold as lightweight pigs. It is assumed that when light weight pigs are sold, they will have a salvage value. Therefore, total marketings are reduced by "&'Finish Input'!H31&"% to compensate for the lightweight pigs." -> The budget includes an assumption that 1.5% of the market pigs are sold as lightweight pigs. It is assumed that when light weight pigs are sold, they will have a salvage value. Therefore, total marketings are reduced by 2.44% to compensate for the lightweight pigs.
A15: The budget includes an assumption that this particular operation is "all-in, all-out" by room. Space allocations for finishing pigs are in accordance with Recommended Code of Practice for the Care and Handling of Farm Animals: Pigs.
A19: The rations illustrated in this budget are examples only. Individual farm conditions should be taken into account when formulating the diets. Producers need to know the feed intakes of their animals. Please consult with a nutritionist for diet information suggestions.
A23: The Manitoba pork production industry profile is changing and this budget was specifically designed to address the need of producers who may want to analyze the cost of starting up or switching to a finishing 26 to 123 kg operation. Several companies are offering contracts with varying levels of guarantees. Producers need to accurately calculate their costs before they can properly make a decision.

Sheet Finish Summary
A1: ="Swine (26 to 123 kg) Finishing Summary - "&Introduction!G12 -> Swine (26 to 123 kg) Finishing Summary - June, 2025
E4: $/Pig | F4: Total | K4: Your
A5: A. Operating Costs | E5: Sold | F5: Cost | K5: Cost
A6: Feed Costs:
B7: Grower 1 | E7: ='Finish Input'!G45 -> 17.13 | F7: =ROUND(E7*'Finish Input'!$G$32,0) -> 194879
B8: Grower 2 | E8: ='Finish Input'!H45 -> 77 | F8: =ROUND(E8*'Finish Input'!$G$32,0) -> 875988
B9: Finisher | E9: ='Finish Input'!I45 -> 42.8 | F9: =ROUND(E9*'Finish Input'!$G$32,0) -> 486913
A10: Total Feed Cost | E10: =SUM(E7:E9) -> 136.93 | F10: =SUM(F7:F9) -> 1557780
A12: Other Operating Costs:
B13: Weanling Cost | E13: ='Finish Input'!C54 -> 89.42 | F13: =ROUND(E13*'Finish Input'!$G$32,0) -> 1017284
B14: Veterinary Medicine & Supplies | E14: ='Finish Input'!C60 -> 1.467941958 | F14: =ROUND(E14*'Finish Input'!$G$32,0) -> 16700
B15: Maintenance & Repairs | E15: ='Finish Input'!C66 -> 2.447598376 | F15: =ROUND(E15*'Finish Input'!$G$32,0) -> 27845
B16: Hydro & Propane | E16: ='Finish Input'!C74 -> 3.616938665 | F16: =ROUND(E16*'Finish Input'!$G$32,0) -> 41148
B17: Insurance | E17: ='Finish Input'!C94 -> 2.794735594 | F17: =ROUND(E17*'Finish Input'!$G$32,0) -> 31794
B18: Manure Costs | E18: ='Finish Input'!C124 -> 2.209488062 | F18: =ROUND(E18*'Finish Input'!$G$32,0) -> 25136
B19: Office Supplies | E19: ='Finish Input'!C130 -> 0.1051246446 | F19: =ROUND(E19*'Finish Input'!$G$32,0) -> 1196
B20: Marketing & Transport | E20: ='Finish Input'!C140 -> 9.61 | F20: =ROUND(E20*'Finish Input'!$G$32,0) -> 109328
B21: Property Tax | E21: ='Finish Input'!C171 -> 0.9317475904 | F21: =ROUND(E21*'Finish Input'!$G$32,0) -> 10600
A22: Subtotal Operating Costs | E22: =SUM(E13:E21)+E10 -> 249.5335749 | F22: =SUM(F13:F21)+F10 -> 2838811
B23: Interest on Operating Costs | E23: ='Finish Input'!C159 -> 3.997794904 | F23: =ROUND(E23*'Finish Input'!$G$32,0) -> 45481
A24: Total Operating Costs | E24: =SUM(E22:E23) -> 253.5313698 | F24: =SUM(F22:F23) -> 2884292
A26: B. Fixed Costs
B27: Buildings & Manure Storage | E27: ='Fixed Cost'!D23 -> 16.79527842 | F27: =ROUND(E27*'Finish Input'!$G$32,0) -> 191071
B28: Barn Equipment | E28: ='Fixed Cost'!I23 -> 8.99694821 | F28: =ROUND(E28*'Finish Input'!$G$32,0) -> 102354
B29: Land | E29: ='Fixed Cost'!D37 -> 1.19115402 | F29: =ROUND(E29*'Finish Input'!$G$32,0) -> 13551
A30: Total Fixed Costs | E30: =SUM(E27:E29) -> 26.98338065 | F30: =SUM(F27:F29) -> 306976
A32: C. Labour
B33: Wages, benefits and hired manager | E33: ='Finish Input'!C179 -> 5.923805057 | F33: =ROUND(E33*'Finish Input'!$G$32,0) -> 67392
A35: Total Cost of Production | E35: =E24+E30+E33 -> 286.4385555 | F35: =F24+F30+SUM(F33:F33) -> 3258660
A37: Profitability and Breakeven Analysis
A39: Estimated Farmgate | E39: Per Pig | F39: Total
B40: Market Price ($ per 100kg) | E40: ='Finish Input'!E22 -> 277
B41: Market weight (shrunk-kg/hog live) | E41: =('Finish Input'!I11)*(1-('Finish Input'!H31/100)) -> 119.9988
B42: Dressing % | E42: ='Finish Input'!I23 -> 80
B43: Premium per head sold | E43: ='Finish Input'!E23 -> 0
B44: Land rental per head sold | E44: =SUM(('Fixed Cost'!C40*'Fixed Cost'!C41)/'Finish Input'!G32) -> 0
B45: Gross Revenue / hog | E45: =SUM(((E41*E42)*('Finish Input'!I22/100)*E40)/10000+E43)+E44 -> 292.5090749 | F45: =ROUND(E45*'Finish Input'!$G$32,0) -> 3327721
A47: Marginal Returns
B48: Over Operating Costs | E48: =SUM(E45-E24) -> 38.97770509 | F48: =ROUND(E48*'Finish Input'!$G$32,0) -> 443429
B49: Over Operating & Labour Costs | E49: =SUM(E45-E24-E33) -> 33.05390003 | F49: =ROUND(E49*'Finish Input'!$G$32,0) -> 376037
B50: Over Total Costs (Net Profit) | E50: =SUM(E45-E35) -> 6.070519374 | F50: =ROUND(E50*'Finish Input'!$G$32,0) -> 69061
A52: Operating Expense Ratio | E52: =SUM(E24/E45) -> 0.8667470228
A54: Breakeven Selling Price | E54: $/100 kg | F54: $/cwt
B55: Operating Costs | E55: =(E24/(('Finish Input'!$I$11)*('Finish Input'!$I$23/100)*('Finish Input'!$I$22/100)))*100 -> 234.2307555 | F55: =E55/2.2046 -> 106.2463737
B56: Operating & Labour Costs | E56: =((E24+E33)/(('Finish Input'!$I$11)*('Finish Input'!$I$23/100)*('Finish Input'!$I$22/100)))*100 -> 239.7035983 | F56: =E56/2.2046 -> 108.7288389
B57: Total Costs | E57: =(E35/(('Finish Input'!$I$11)*('Finish Input'!$I$23/100)*('Finish Input'!$I$22/100)))*100 -> 264.6328118 | F57: =E57/2.2046 -> 120.036656
A59: Return On Assets (ROA) | E59: =SUM((E50+E23+'Fixed Cost'!G58)*'Finish Input'!$I$15)/(('Fixed Cost'!D43)+(((E45-E44)/2)*'Finish Input'!I19)) -> 0.06312169433
A61: Note: This budget is only a guide and is not intended to be an in-depth study of the cost of production of this industry. Interpretation and utilization of this information is the responsibility of the user. No liability for decisions based on this publication is assumed.

Sheet Risk Analysis
A1: Risk & Sensitivity Analysis (Stress Test)
A2: A. Operating Costs
B3: Feed cost | C3: ='Finish Summary'!E10 -> 136.93 | D3: ='Finish Summary'!H10 -> 0
B4: Weanling cost | C4: ='Finish Summary'!E13 -> 89.42 | D4: ='Finish Summary'!H13 -> 0
B5: Other Operating Costs | C5: =SUM('Finish Summary'!E24-'Finish Summary'!E13-'Finish Summary'!E10) -> 27.18136979 | D5: =SUM('Finish Summary'!H24-'Finish Summary'!H13-'Finish Summary'!H10) -> 0
B6: Subtotal | C6: =SUM(C3:C5) -> 253.5313698 | D6: =SUM(D3:D5) -> 0
A7: B. Fixed Costs | C7: ='Finish Summary'!E30 -> 26.98338065 | D7: ='Finish Summary'!H30 -> 0
A8: C. Labour | C8: ='Finish Summary'!E33 -> 5.923805057 | D8: ='Finish Summary'!H33 -> 0
A9: Total Costs | C9: =SUM(C6:C8) -> 286.4385555 | D9: =SUM(D6:D8) -> 0
A11: Estimated Farmgate
B12: Price ($ per 100kg) | C12: ='Finish Input'!E22 -> 277 | D12: ='Finish Input'!E22 -> 277
B15: Percent Market Price Change | C15: -0.1
B16: Percent Feed Cost Change | C16: 0.1
B17: Percent Weanling Cost Change | C17: 0.05
B20: Market Price ($ per 100kg) | C20: =SUM(C12*(1+C15)) -> 249.3
B21: Feed Cost | C21: =SUM(C3+(C3*C16)) -> 150.623
B22: Weanling Cost | C22: =SUM(('Finish Input'!C48*(1+C17))/100*'Finish Input'!C50*'Finish Input'!$C$51*'Finish Input'!$G$28/'Finish Input'!$G$32) -> 93.89408261
A24: ="Stress Test Scenario = Market Price "&IF(C15<0,"Down","Up")&" "&ABS(C15*100)&"%, Feed Price "&IF(C16<0,"Down","Up")&" "&ABS(C16*100)&"% and Weanling Cost "&IF(C17<0,"Down","Up")&" "&ABS(C17*100)&"%" -> Stress Test Scenario = Market Price Down 10%, Feed Price Up 10% and Weanling Cost Up 5%
B25: Operating Costs | C25: =SUM(C5+C21+C22) -> 271.6984524
B26: Total Costs | C26: =C7+C8+C25 -> 304.6056381
B27: Gross Revenue / hog | C27: =SUM((('Finish Summary'!$E$41*'Finish Input'!$I$23)*('Finish Input'!$I$22/100)*C20)/10000+'Finish Input'!$E$23)+'Finish Summary'!$E$44 -> 263.2581674
B28: Marginal Returns
B29: Over Operating Costs | C29: =SUM(C27-C25) -> -8.440285015
B30: Over Operating & Labour Costs | C30: =SUM(C27-C25-C8) -> -14.36409007
B31: Over Total Costs (Net Profit) | C31: =SUM(C27-C26) -> -41.34747073
B32: Operating Expense Ratio | C32: =SUM(C25/C27) -> 1.032060867
B33: Return on Asset (ROA) | C33: =SUM(((C31+'Finish Summary'!$E$23+'Fixed Cost'!G58)*'Finish Input'!$I$15)/('Fixed Cost'!D43+(((C27-'Finish Summary'!$E$44/2))*'Finish Input'!$I35))) -> -0.1262512935
A36: Estimated Breakeven Canadian Dollar Analysis*
C38: Est. US Futures Price (USD per cwt)
C39: =SUM($E$39-4) -> 91.36423841 | D39: =SUM($E$39-2) -> 93.36423841 | E39: ='Finish Input'!F25 -> 95.36423841 | F39: =SUM($E$39+2) -> 97.36423841 | G39: =SUM($E$39+4) -> 99.36423841
A40: Breakeven CDN Dollar ($1 Cdn = $ USD)
B41: Operating Costs | C41: =SUM(C39/(('Finish Summary'!$E$24/2.2046)+('Finish Input'!$H$23/2.2046))) -> 0.7500859216 | D41: =SUM(D39/(('Finish Summary'!$E$24/2.2046)+('Finish Input'!$H$23/2.2046))) -> 0.7665056048 | E41: =SUM(E39/(('Finish Summary'!$E$24/2.2046)+('Finish Input'!$H$23/2.2046))) -> 0.7829252879 | F41: =SUM(F39/(('Finish Summary'!$E$24/2.2046)+('Finish Input'!$H$23/2.2046))) -> 0.799344971 | G41: =SUM(G39/(('Finish Summary'!$E$24/2.2046)+('Finish Input'!$H$23/2.2046))) -> 0.8157646541
B42: Operating & Labour Costs | C42: =SUM(C39/((('Finish Summary'!$E$24+'Finish Summary'!C33)/2.2046)+('Finish Input'!$H$23/2.2046))) -> 0.7500859216 | D42: =SUM(D39/((('Finish Summary'!$E$24+'Finish Summary'!D33)/2.2046)+('Finish Input'!$H$23/2.2046))) -> 0.7665056048 | E42: =SUM(E39/((('Finish Summary'!$E$24+'Finish Summary'!E33)/2.2046)+('Finish Input'!$H$23/2.2046))) -> 0.7660267295 | F42: =SUM(F39/((('Finish Summary'!$E$24+'Finish Summary'!F33)/2.2046)+('Finish Input'!$H$23/2.2046))) -> 0.003172443309 | G42: =SUM(G39/((('Finish Summary'!$E$24+'Finish Summary'!G33)/2.2046)+('Finish Input'!$H$23/2.2046))) -> 0.8157646541
B43: Operating, Fixed & Labour Costs | C43: =SUM(C39/(('Finish Summary'!$E$35/2.2046)+('Finish Input'!$H$23/2.2046))) -> 0.668201185 | D43: =SUM(D39/(('Finish Summary'!$E$35/2.2046)+('Finish Input'!$H$23/2.2046))) -> 0.6828283783 | E43: =SUM(E39/(('Finish Summary'!$E$35/2.2046)+('Finish Input'!$H$23/2.2046))) -> 0.6974555715 | F43: =SUM(F39/(('Finish Summary'!$E$35/2.2046)+('Finish Input'!$H$23/2.2046))) -> 0.7120827647 | G43: =SUM(G39/(('Finish Summary'!$E$35/2.2046)+('Finish Input'!$H$23/2.2046))) -> 0.726709958
A45: Estimated Breakeven US Futures Price Analysis*
C47: Canadian Dollar ($1 Cdn = $ USD)
C48: =SUM($E$48-0.02) -> 0.7 | D48: =SUM($E$48-0.01) -> 0.71 | E48: ='Finish Input'!E24 -> 0.72 | F48: =SUM($E$48+0.01) -> 0.73 | G48: =SUM($E$48+0.02) -> 0.74
C49: =SUM(1/C48) -> 1.428571429 | D49: =SUM(1/D48) -> 1.408450704 | E49: =SUM(1/E48) -> 1.388888889 | F49: =SUM(1/F48) -> 1.369863014 | G49: =SUM(1/G48) -> 1.351351351
A50: Breakeven Futures Price ($ USD)
B51: Operating Costs | C51: =SUM(('Finish Summary'!$E$24/2.2046)+('Finish Input'!$H$23/2.2046))/C$49 -> 85.26352121 | D51: =SUM(('Finish Summary'!$E$24/2.2046)+('Finish Input'!$H$23/2.2046))/D$49 -> 86.48157151 | E51: =SUM(('Finish Summary'!$E$24/2.2046)+('Finish Input'!$H$23/2.2046))/E$49 -> 87.69962181 | F51: =SUM(('Finish Summary'!$E$24/2.2046)+('Finish Input'!$H$23/2.2046))/F$49 -> 88.91767212 | G51: =SUM(('Finish Summary'!$E$24/2.2046)+('Finish Input'!$H$23/2.2046))/G$49 -> 90.13572242
B52: Operating & Labour Costs | C52: =SUM((('Finish Summary'!$E$24+'Finish Summary'!$E$33)/2.2046)+('Finish Input'!$H$23/2.2046))/C$49 -> 87.14443545 | D52: =SUM((('Finish Summary'!$E$24+'Finish Summary'!$E$33)/2.2046)+('Finish Input'!$H$23/2.2046))/D$49 -> 88.38935596 | E52: =SUM((('Finish Summary'!$E$24+'Finish Summary'!$E$33)/2.2046)+('Finish Input'!$H$23/2.2046))/E$49 -> 89.63427646 | F52: =SUM((('Finish Summary'!$E$24+'Finish Summary'!$E$33)/2.2046)+('Finish Input'!$H$23/2.2046))/F$49 -> 90.87919697 | G52: =SUM((('Finish Summary'!$E$24+'Finish Summary'!$E$33)/2.2046)+('Finish Input'!$H$23/2.2046))/G$49 -> 92.12411748
B53: Operating, Fixed & Labour Costs | C53: =SUM(('Finish Summary'!$E$35/2.2046)+('Finish Input'!$H$23/2.2046))/C$49 -> 95.71214227 | D53: =SUM(('Finish Summary'!$E$35/2.2046)+('Finish Input'!$H$23/2.2046))/D$49 -> 97.07945859 | E53: =SUM(('Finish Summary'!$E$35/2.2046)+('Finish Input'!$H$23/2.2046))/E$49 -> 98.44677491 | F53: =SUM(('Finish Summary'!$E$35/2.2046)+('Finish Input'!$H$23/2.2046))/F$49 -> 99.81409123 | G53: =SUM(('Finish Summary'!$E$35/2.2046)+('Finish Input'!$H$23/2.2046))/G$49 -> 101.1814075
A55: ="Breakeven Canadian Dollar = Est. US Futures / (Cost + Basis) (eg. ($"&TEXT(E39,"0.00")&" /(($"&TEXT('Finish Summary'!E35,"0.00")&" + $"&TEXT('Finish Input'!H23,"0.00")&")/2.2046)) = $"&TEXT(E43,"0.0000")&" US)" -> Breakeven Canadian Dollar = Est. US Futures / (Cost + Basis) (eg. ($95.36 /(($286.44 + $15.00)/2.2046)) = $0.6975 US)
A56: ="Breakeven Est. US Futures = (Cost + Basis) / Cdn Dollar (eg. ((($"&TEXT('Finish Summary'!E35,"0.00")&" + $"&TEXT('Finish Input'!H23,"0.00")&")/2.2046)/(1/"&TEXT(E48,"0.0000")&")) = $"&TEXT(E53,"0.00")&")" -> Breakeven Est. US Futures = (Cost + Basis) / Cdn Dollar (eg. ((($286.44 + $15.00)/2.2046)/(1/0.7200)) = $98.45)
A58: Note: This budget is only a guide and is not intended as an in depth study of the cost of production of this industry. Interpretation and utilization of this information is the responsibility of the user.

Sheet Finish Input
A1: Swine (26-121 kg) Finishing Production Cost Assumptions
A3: 1. | B3: This input table outlines the cost of production for a finishing enterprise
A4: 2. | B4: Buildings and equipment are valued at new cost.
A5: 3. | B5: Purchased feed is used.
A6: 4. | B6: Manure haulage is contracted out.
A8: Indicators of Productivity | G8: Grower 1 | H8: Grower 2 | I8: Finisher | K8: Total
A9: Number of Pigs Purchased | G9: 12000 | H9: =G15 -> 11886 | I9: =H15 -> 11773 | K9: =G9 -> 12000
A10: Average Beginning Weight (kg) | G10: 26 | H10: =G11 -> 40 | I10: =H11 -> 95 | K10: =G10 -> 26
A11: Average Ending Weight (kg) | G11: 40 | H11: 95 | I11: 123 | K11: =I11 -> 123
A12: Percent Mortality | G12: 0.95 | H12: 0.95 | I12: 0.95 | K12: =((G9-I15)/G9)*100 -> 2.825
A13: Days on Feed | G13: 19 | H13: 65 | I13: 32 | K13: =SUM(G13:I13) -> 116
A14: Feed Conversion Ratio (FCR) | G14: 1.95 | H14: 2.8 | I14: 3.5 | K14: =(G14*(G11-G10)+H14*(H11-H10)+I14*(I11-I10))/(I11-G10) -> 2.879381443
A15: Number of Pigs (Ending) | G15: =ROUND(G9-(G9*G12/100),0) -> 11886 | H15: =ROUND(H9-(H9*H12/100),0) -> 11773 | I15: =ROUND(I9-(I9*I12/100),0) -> 11661 | K15: =I15 -> 11661
A16: Weight Gain/Pig (kg) | G16: =G11-G10 -> 14 | H16: =H11-H10 -> 55 | I16: =I11-I10 -> 28 | K16: =SUM(G16:I16) -> 97
A17: Feed Disappearance/Pig (kg) | G17: =G14*G16 -> 27.3 | H17: =H14*H16 -> 154 | I17: =I14*I16 -> 98 | K17: =SUM(G17:I17) -> 279.3
A18: Average Daily Gain (kg) | G18: =(G11-G10)/G13 -> 0.7368421053 | H18: =(H11-H10)/H13 -> 0.8461538462 | I18: =(I11-I10)/I13 -> 0.875 | K18: =K16/K13 -> 0.8362068966
A19: Average Number Pigs in Barn | G19: =((G9+G15)/2)/$G$35 -> 4024.627397 | H19: =((H9+H15)/2)/$G$35 -> 3986.379452 | I19: =((I9+I15)/2)/$G$35 -> 3948.468493 | K19: =SUM(G19:I19)/3 -> 3986.491781
A21: Marketing
B22: Market Price/100kg | E22: 277 | F22: or: | G22: =E22/100/2.2046 -> 1.256463758 | H22: /lb | I22: 110 | J22: Market Index
B23: Premium/head | E23: 0 | G23: Basis ($ per 100kg) | H23: 15 | I23: 80 | J23: % Dress
B24: $1 Canadian Dollar | E24: 0.72 | G24: USD or $1 USD = | H24: =SUM(1/E24) -> 1.388888889 | I24: Canadian Dollar
B25: Estimated US Futures Price | F25: =SUM((E22+H23)/2.2046)/H24 -> 95.36423841 | G25: USD
A27: Productivity Profile | G27: Total
A28: Pigs Purchased | G28: =G9 -> 12000
A29: Pigs Died | G29: =ROUND(G28*K12/100,0) -> 339 | H29: =K12 -> 2.825 | I29: % mortality
A30: Pigs available for marketing | G30: =I15 -> 11661
A31: Less Light Weight Pig Adjustment | G31: =G30*H31/100 -> 284.5284 | H31: 2.44 | I31: %
A32: Pigs Sold at full market value | G32: =G30-G31 -> 11376.4716
A33: Washing and restocking days | G33: 7
A34: Total Days to Market | G34: =G13+H13+I13+G33 -> 123
A35: Turnover (365 / days to market) | G35: =365/G34 -> 2.967479675
A37: Feed Requirements and Costs | G37: Grower 1 | H37: Grower 2 | I37: Finisher
C38: kg weight gain/pig | G38: =G16 -> 14 | H38: =H16 -> 55 | I38: =I16 -> 28
B39: x | C39: FCR (Feed:Gain) | G39: =G14 -> 1.95 | H39: =H14 -> 2.8 | I39: =I14 -> 3.5
B40: = | C40: kg ration/pig | G40: =G17 -> 27.3 | H40: =H17 -> 154 | I40: =I17 -> 98
B41: x | C41: ration cost per tonne | G41: 595 | H41: 474 | I41: 414
B42: ÷ | C42: kg/tonne | G42: 1000 | H42: 1000 | I42: 1000
B43: x | C43: weanlings purchased | G43: =$G$28 -> 12000 | H43: =$G$28 -> 12000 | I43: =$G$28 -> 12000
B44: ÷ | C44: pigs sold | G44: =$G$32 -> 11376.4716 | H44: =$G$32 -> 11376.4716 | I44: =$G$32 -> 11376.4716
B45: = | C45: /pig sold | G45: =ROUND(((G40*G41/1000)*G43)/G44,2) -> 17.13 | H45: =ROUND(((H40*H41/1000)*H43)/H44,2) -> 77 | I45: =ROUND(((I40*I41/1000)*I43)/I44,2) -> 42.8
A47: Weanling Cost
C48: 87 | E48: market price
B49: ÷ | C49: 100 | E49: lbs/cwt
B50: x | C50: =G10*2.20462 -> 57.32012 | E50: lbs
B51: x | C51: 1.7 | E51: formula factor
B52: x | C52: ='Finish Input'!$G$28 -> 12000 | E52: weanlings purchased
B53: ÷ | C53: ='Finish Input'!$G$32 -> 11376.4716 | E53: pigs sold
B54: = | C54: =ROUND(((C48/C49*C50*C51))*C52/C53,2) -> 89.42 | E54: /pig sold
A56: Veterinary Cost
C57: 700 | E57: professional services
B58: + | C58: 16000 | E58: medication
B59: ÷ | C59: ='Finish Input'!$G$32 -> 11376.4716 | E59: pigs sold
B60: = | C60: =(C57+C58)/C59 -> 1.467941958 | E60: /pig sold
A62: Maintenance & Repairs
C63: 1.1 | E63: % of total capital investment
B64: x | C64: ='Fixed Cost'!D10+'Fixed Cost'!I10 -> 2531366.674 | E64: total buildings and equipment cost
B65: ÷ | C65: ='Finish Input'!$G$32 -> 11376.4716 | E65: pigs sold
B66: = | C66: =C63/100*C64/C65 -> 2.447598376 | E66: /pig sold
A68: Utilities
C69: 0.09324 | D69: /kwhr | E69: Hydro rate
B70: x | C70: 200000 | D70: kwhr | E70: Hydro usage
C71: 0.75 | D71: /litre | E71: Propane rate
B72: x | C72: 30000 | D72: litres | E72: Propane usage
B73: ÷ | C73: ='Finish Input'!$G$32 -> 11376.4716 | E73: pigs sold
B74: = | C74: =((C69*C70)+(C71*C72))/C73 -> 3.616938665 | E74: /pig sold
A76: Insurance
C77: ='Fixed Cost'!D10+'Fixed Cost'!I10 -> 2531366.674 | E77: value - buildings & equipment
B78: x | C78: 0.78 | E78: /$100 Capital Invested
B79: ÷ | C79: ='Finish Input'!$G$32 -> 11376.4716 | E79: pigs sold
B80: = | C80: =C78*C77/100/C79 -> 1.735569758 | E80: /pig sold
C82: ='Finish Input'!K19 -> 3986.491781 | E82: average number pigs in barn
B83: x | C83: =E22 -> 277 | E83: estimated market value of hogs
B84: x | C84: 0.88 | E84: /$100 Capital Invested
B85: ÷ | C85: ='Finish Input'!$G$32 -> 11376.4716 | E85: pigs sold
B86: = | C86: =(((C82*C83)*C84)/100)/C85 -> 0.8541727793 | E86: /pig sold
C88: 75 | E88: Business Interruption Insured value
B89: x | C89: ='Finish Input'!K19 -> 3986.491781 | E89: average number in barn
B90: x | C90: 0.78 | E90: rate /$100
B91: ÷ | C91: ='Finish Input'!$G$32 -> 11376.4716 | E91: pigs sold
B92: = | C92: =((C88*C89)*C90/100)/C91 -> 0.2049930571 | E92: /pig sold
B94: = | C94: =C80+C86+C92 -> 2.794735594 | E94: /pig sold
A96: Manure Costs
B97: Haulage | E97: 7.1 | F97: litres/pig/day
B98: x | C98: 365 | E98: days/year
B99: x | C99: ='Finish Input'!K19 -> 3986.491781 | E99: average inventory of pigs
B100: x | C100: 0.003 | E100: /litre = | F100: =C100*4.54609 -> 0.01363827 | G100: /gallon
B101: ÷ | C101: ='Finish Input'!$G$32 -> 11376.4716 | E101: pigs sold
B102: = | C102: =(E97*C98*C99*C100)/C101 -> 2.724305166 | E102: /pig sold
B103: Estimated Nutrient Value
C104: ='Finish Input'!E97 -> 7.1 | E104: litres/pig/day
B105: x | C105: 365 | E105: days/year
B106: x | C106: ='Finish Input'!K19 -> 3986.491781 | E106: average inventory of pigs
B107: ÷ | C107: 1000
B108: = | C108: =SUM((C104*C105*C106)/1000) -> 10330.99345 | E108: # of 1000 litres of manure
G109: Nitrogen | H109: Phosphate | I109: Potassium
C110: kg per 1000 litres | G110: 3.5 | H110: 0.74 | I110: 1.41
B111: x | C111: # of 1000 litres of manure | G111: =C108 -> 10330.99345 | H111: =C108 -> 10330.99345 | I111: =C108 -> 10330.99345
B112: x | C112: % nutrient value recovery | G112: 60 | H112: 0 | I112: 0
B113: ÷ | C113: lbs per kg | G113: 2.2045855 | H113: 2.2045855 | I113: 2.2045855
B114: x | C114: fertilizer value per lb. | G114: 0.9 | H114: 0.9 | I114: 0.5
B115: ÷ | C115: pigs sold | G115: ='Finish Input'!$G$32 -> 11376.4716 | H115: ='Finish Input'!$G$32 -> 11376.4716 | I115: ='Finish Input'!$G$32 -> 11376.4716
B116: = | C116: estimated nutrient value / pig sold | G116: =SUM((G110*G111*(G112/100)/G113)*G114)/G115 -> 0.778519252 | H116: =SUM((H110*H111*(H112/100)/H113)*H114)/H115 -> 0 | I116: =SUM((I110*I111*(I112/100)/I113)*I114)/I115 -> 0
G117: * kg/1000 L x 10 = lbs/1000 imp. Gallons
B118: Odour control & Mgmt Fees
C119: 0 | E119: Odour control (barley straw)
B120: + | C120: 3000 | E120: Manure Management Fee
B121: ÷ | C121: ='Finish Input'!$G$32 -> 11376.4716 | E121: pigs sold
B122: = | C122: =(C119+C120)/C121 -> 0.2637021482 | E122: /pig sold
B124: = | C124: =C102+C122-(G116+H116+I116) -> 2.209488062 | E124: /pig sold
A126: Office Supplies
C127: 0.3 | E127: /pig place
B128: x | C128: ='Finish Input'!K19 -> 3986.491781 | E128: pig places
B129: ÷ | C129: ='Finish Input'!$G$32 -> 11376.4716 | E129: pigs sold
B130: = | C130: =C127*C128/C129 -> 0.1051246446 | E130: /pig sold
A132: Marketing & Transportation
C133: 4 | D133: Trucking in
B134: + | C134: 4.5 | D134: Trucking out
B135: + | C135: 0.8 | D135: Council Levy
B136: + | C136: 0.06 | D136: Grading Charge
B137: + | C137: 0 | D137: Truck Washing
B138: + | C138: 0.25 | D138: Insurance
B139: + | C139: 0 | D139: Special Levy
B140: = | C140: =SUM(C133:C139) -> 9.61 | E140: /pig sold
A142: Operating Loan Interest | E142: 7 | F142: %
A144: Interest on Operating Cost
C145: ='Finish Summary'!E13 -> 89.42 | E145: weaner cost
B146: x | C146: ='Finish Input'!G34 -> 123 | E146: total days to market
B147: x | C147: ='Finish Input'!$E$142 -> 7 | E147: % operating rate
B148: ÷ | C148: 365 | E148: days/year
B149: = | C149: =C145*C146*C147/100/C148 -> 2.109332055 | E149: /pig sold
C151: ='Finish Summary'!E22 -> 249.5335749 | E151: subtotal operating cost
B152: - | C152: =C145 -> 89.42 | E152: weaner cost
B153: ÷ | C153: 2 | E153: average
B154: x | C154: =C146 -> 123 | E154: total days to market
B155: ÷ | C155: 365 | E155: days/year
B156: x | C156: =C147 -> 7 | E156: % operating rate
B157: = | C157: =((((C151-C152)/C153)*C154)*C156/100)/C155 -> 1.888462849 | E157: /pig sold
B159: = | C159: =C149+C157 -> 3.997794904 | E159: /pig sold
A161: Property Taxes
C162: 10000 | E162: taxes on grower-finisher barn & land
B163: ÷ | C163: ='Finish Input'!$G$32 -> 11376.4716 | E163: pigs sold
B164: = | C164: =C162/C163 -> 0.8790071607 | E164: /pig sold
C166: 15 | E166: taxes on land
B167: x | C167: ='Fixed Cost'!D27 -> 40 | E167: acres
B168: ÷ | C168: ='Finish Input'!$G$32 -> 11376.4716 | E168: pigs sold
B169: = | C169: =(C166*C167)/C168 -> 0.05274042964 | E169: /pig sold
B171: = | C171: =C164+C169 -> 0.9317475904 | E171: /pig sold
A173: Labour
C174: =ROUND((((K19/2000)*0.5)*(40*52))/(52),-1)+8 -> 48 | D174: hours/week
B175: x | C175: 52 | D175: weeks/year
B176: = | C176: =C174*52 -> 2496 | D176: total hours/year
B177: x | C177: 27 | D177: wage/hour (includes hired manager)
B178: ÷ | C178: ='Finish Input'!$G$32 -> 11376.4716 | D178: pigs sold
B179: = | C179: =C176*C177/C178 -> 5.923805057 | D179: /pig sold

Sheet Fixed Cost
A1: Fixed Costs
B3: Pig Places1 | C3: ='Finish Input'!G19*1.005 -> 4044.750534 | D3: 9.2 | E3: ft.2 per Pig Place | G3: =D3*C3 -> 37211.70492 | H3: ft.2 Total
A5: Buildings | C5: $/pig place | D5: Total | F5: Barn Equipment | H5: $/pig place | I5: Total
B6: Barn Cost | C6: 460 | D6: =C6*$C$3 -> 1860585.246 | E6: ="($"&SUM(C6*$C$3)/$G$3&"/sq.ft.) " -> ($50/sq.ft.) | G6: Finishing Barn | H6: 120 | I6: =H6*$C$3 -> 485370.0641 | J6: ="($"&ROUND((H6*$C$3)/$G$3,0)&"/sq.ft.) " -> ($13/sq.ft.)
B7: Office and Loading (300 sq.ft.) | C7: 3.71 | D7: =C7*$C$3 -> 15006.02448 | E7: ="($"&ROUND((C7*$C$3)/300,0)&"/sq.ft.) " -> ($50/sq.ft.) | G7: Other | H7: 0 | I7: =H7*$C$3 -> 0 | L7: *HIDE*
B8: Manure Storage | C8: 30 | D8: =C8*$C$3 -> 121342.516 | G8: Fire Alarm System | H8: 0.25 | I8: =H8*$C$3 -> 1011.187634 | L8: =(#REF!-#REF!)/(#REF!+D27) -> 
B9: Standby Generator | C9: 5.94 | D9: =C9*$C$3 -> 24025.81817 | G9: Storage Bins | H9: 5.94 | I9: =H9*$C$3 -> 24025.81817
B10: Total Barn Cost | C10: =SUM(C6:C9) -> 499.65 | D10: =SUM(D6:D9) -> 2020959.604 | G10: Total Equipment Cost | H10: =SUM(H6:H9) -> 126.19 | I10: =SUM(I6:I9) -> 510407.0699
B12: Residual Value (End of Useful Life) | D12: 0.5 | G12: Residual Value (End of Useful Life) | I12: 0.1
B13: Useful Life (years) | D13: 25 | G13: Useful Life (years) | I13: 10
B14: Owned Barn Equity | D14: 0.25 | G14: Owned Barn Equipment Equity | I14: 0.25
B15: Barn Financed | D15: =SUM(1-D14) -> 0.75 | G15: Barn Equipment Financed | I15: =SUM(1-I14) -> 0.75
B16: Barn Opportunity Cost (Investment Rate) | D16: 0.015 | G16: Equipment Opportunity Cost (Investment Rate) | I16: 0.015
B17: Buildings Cost | G17: Barn Equipment Cost
B18: Finance Rate & Term | C18: 0.07 | D18: 20 | E18: Years | G18: Finance Rate & Term | H18: 0.07 | I18: 10 | J18: Years
B19: Principle & Interest Cost | D19: =-PMT(C18,D18,D10*D15,0) -> 143073.2174 | G19: Principle & Interest Cost | I19: =-PMT(H18,I18,I10*I15,0) -> 54502.86299
B20: Buildings Depreciation Cost | D20: =(D10-(D10*D12))/D13 -> 40419.19209 | G20: Equipment Depreciation Cost | I20: =(I10-(I10*I12))/I13 -> 45936.63629
B21: Owned Building Opportunity Cost | D21: =SUM(D10*D14)*(D16) -> 7578.598517 | G21: Owned Equipment Opportunity Cost | I21: =SUM(I10*I14)*(I16) -> 1914.026512
B22: Total Cost | D22: =SUM(D19:D21) -> 191071.008 | G22: Total Cost | I22: =SUM(I19:I21) -> 102353.5258
B23: =" Total Cost $/pig sold (based on "&TEXT('Finish Input'!G32,"#,###")&")" -> Total Cost $/pig sold (based on 11,376) | D23: =D22/'Finish Input'!G32 -> 16.79527842 | G23: =" Total Cost $/pig sold (based on "&TEXT('Finish Input'!G32,"#,###")&")" -> Total Cost $/pig sold (based on 11,376) | I23: =I22/'Finish Input'!G32 -> 8.99694821
L24: w/o harvest
A25: Land | L25: =-PMT($C$18,$D$18,L8*$D$15,0) -> 
B26: Average Land value ($/acre) | D26: 4000
B27: Acres | D27: 40
B28: Site preparation cost | D28: 36000 | L28: =(L8-(L8*$D$12))/$D$13 -> 
B29: Owned Land Equity | D29: 0.25
B30: Land Financed | D30: =SUM(1-D29) -> 0.75
B31: Land Opportunity Cost (Investment Rate) | D31: 0.015
B32: Land cost
B33: Finance Rate & Term | C33: 0.06 | D33: 20 | E33: Years
B34: Principle & Interest Cost | D34: =-PMT(C33,D33,((D26*D27)+D28)*D30,0) -> 12816.12988 | E34: =-IPMT(C33,D33,((D26*D27)+D28)*D30,0) -> 0
B35: Owned Land Opportunity Cost | D35: =SUM(((D26*D27)+D28)*D29)*(D31) -> 735
B36: Total Cost | D36: =SUM(D34:D35) -> 13551.12988
B37: =" Total Cost $/pig sold (based on "&TEXT('Finish Input'!G32,"#,###")&")" -> Total Cost $/pig sold (based on 11,376) | D37: =D36/'Finish Input'!G32 -> 1.19115402
B39: Land Rental
B40: Number of Acres rented out | C40: 0 | D40: acres
B41: Land rental rate (income) | C41: 100 | D41: /acre
B43: Total Capital Investment | D43: =D10+I10+(D26*D27)+D28 -> 2727366.674
B44: Total Capital Investment / Pig Place | D44: =D43/C3 -> 674.2978711
A46: ¹ FOOTNOTE: The number of square feet in the building and the cost per square foot for buildings and equipment are approximations only. A certified building plan which is designed according to the average inventory of grower-finisher pigs should be used in order to get the exact dimensions and area for new buildings.
A48: 1 sq.ft. = 0.0929 sq.m; 1 sq.m.= 10.764 sq.ft.; 1 ft.= 0.3048 m
A49: 1 cubic metre = 1000 litres; 1 cubic metre = 35.314 cubic feet; 1 cubic metre = 219.97 imperial gallons
C53: pmt | D53: years | E53: loan amt | G53: interest
B54: Buildings | C54: =D19 -> 143073.2174 | D54: =D18 -> 20 | E54: =D10*D15 -> 1515719.703 | G54: =SUM(((C54*D54)-E54)/D54) -> 67287.23224
B55: equipment | C55: =I19 -> 54502.86299 | D55: =I13 -> 10 | E55: =I10*I15 -> 382805.3024 | G55: =SUM(((C55*D55)-E55)/D55) -> 16222.33275
B56: land | C56: =D34 -> 12816.12988 | D56: =D33 -> 20 | E56: =((D26*D27)+D28)*D30 -> 147000 | G56: =SUM(((C56*D56)-E56)/D56) -> 5466.129876
G57: =SUM(G54:G56) -> 88975.69486 | H57: total
G58: =G57/'Finish Input'!G32 -> 7.821027291 | H58: per pig

Sheet Finish-O (hidden)
B3: =============================================================================
D4: GROWING AND FINISHING PIG PRODUCTION SUMMARY
B6: =============================================================================
B7: A. OPERATING COSTS | I7: TOTAL | J7: $/HOG SOLD | K7: $/PLACE
C8: 1. | D8: Feed Costs: | I8: -----------------------------------------------------------------------
D9: 1.01 | E9: Grower Ration #1 | I9: =J9*'Finish Input'!G30 -> 16763853.6 | J9: =ROUND('Finish Input'!G43*SUM('Finish Input'!H45:P45)/1000,2) -> 1437.6 | K9: =J9*'Finish Input'!G30/'Finish Input'!K19 -> 4205.164471
D10: 1.02 | E10: Grower Ration #2 | I10: =J10*'Finish Input'!G30 -> 0 | J10: =ROUND('Finish Input'!H43*SUM('Finish Input'!H46:P46)/1000,2) -> 0 | K10: =J10*'Finish Input'!G30/'Finish Input'!K19 -> 0
D11: 1.02 | E11: Finisher Ration | I11: =J11*'Finish Input'!G30 -> 0 | J11: =ROUND('Finish Input'!I43*SUM('Finish Input'!H58:P58)/1000,2) -> 0 | K11: =J11*'Finish Input'!G30/'Finish Input'!K19 -> 0
I12: ==================================================
D13: Total Feed Cost | I13: =SUM(I9:I12) -> 16763853.6 | J13: =SUM(J9:J12) -> 1437.6 | K13: =SUM(K9:K12) -> 4205.164471
C15: 2. | D15: Other Operating Costs:
D16: 2.01 | E16: Weanling Cost ** | I16: =J16*'Finish Input'!G30 ->  | J16: ='Finish Input'!#REF!*'Finish Input'!G28/'Finish Input'!G30 ->  | K16: =J16*'Finish Input'!G30/'Finish Input'!K19 -> 
D17: 2.02 | E17: Veterinary Cost | I17: =J17*'Finish Input'!G30 -> 191999997.5 | J17: =ROUND('Finish Input'!C58*'Finish Input'!G9/'Finish Input'!G30,2) -> 16465.14 | K17: =J17*'Finish Input'!G30/'Finish Input'!K19 -> 48162.64728
D18: 2.03 | E18: Maintenance & Repairs | I18: =J18*'Finish Input'!G30 ->  | J18: =ROUND('Finish Input'!C63*'Finish Input'!#REF!/'Finish Input'!G30/100,2) ->  | K18: =J18*'Finish Input'!G30/'Finish Input'!K19 -> 
D19: B7 | E19: Hydro (Heat) | I19: =J19*'Finish Input'!G30 ->  | J19: =ROUND('Finish Input'!#REF!*'Finish Input'!#REF!*'Finish Input'!K19/'Finish Input'!G30,2) ->  | K19: =J19*'Finish Input'!G30/'Finish Input'!K19 -> 
D20: 2.05 | E20: Insurance | I20: =J20*'Finish Input'!G30 -> 20238.47895 | J20: ='Finish Input'!C80 -> 1.735569758 | K20: =J20*'Finish Input'!G30/'Finish Input'!K19 -> 5.076764248
D21: 2.06 | E21: Manure Haulage | I21: =J21*'Finish Input'!G30 -> 31717.92 | J21: =ROUND('Finish Input'!C102,2) -> 2.72 | K21: =J21*'Finish Input'!G30/'Finish Input'!K19 -> 7.956349027
D22: 2.07 | E22: Office Supplies | I22: =J22*'Finish Input'!G30 -> 1166.1 | J22: =ROUND('Finish Input'!C127*'Finish Input'!K19/'Finish Input'!G30,2) -> 0.1 | K22: =J22*'Finish Input'!G30/'Finish Input'!K19 -> 0.2925128319
D23: 2.08 | E23: Marketing & Transportation | I23: =J23*'Finish Input'!G30 -> 52474.5 | J23: =ROUND('Finish Input'!C134,2) -> 4.5 | K23: =J23*'Finish Input'!G30/'Finish Input'!K19 -> 13.16307743
D24: 2.09 | E24: Property Taxes | I24: ='Finish Input'!#REF! ->  | J24: =I24/'Finish Input'!G30 ->  | K24: =J24*'Finish Input'!G30/'Finish Input'!K19 -> 
I25: ================================================
D26: Subtotal Operating Costs | I26: =J26*'Finish Input'!G30 ->  | J26: =J13+SUM(J16:J25) ->  | K26: =J26*'Finish Input'!G30/'Finish Input'!K19 -> 
D27: 2.10 | E27: Interest on Operating Cost | I27: =J27*'Finish Input'!G30 ->  | J27: =ROUND((J16*'Finish Input'!E142/100*'Finish Input'!K13/365)+((J26-J16)*'Finish Input'!E142/100*'Finish Input'!K13/365),2) ->  | K27: =J27*'Finish Input'!G30/'Finish Input'!K19 -> 
I28: ================================================
C29: TOTAL OPERATING COSTS | I29: =J29*'Finish Input'!G30 ->  | J29: =J26+J27 ->  | K29: =J29*'Finish Input'!G30/'Finish Input'!K19 -> 
B31: B. FIXED COSTS
C32: 3. | D32: Depreciation:
D33: 3.01 | E33: Buildings and Manure Storage | I33: =J33*'Finish Input'!G30 ->  | J33: =#REF! ->  | K33: =J33*'Finish Input'!G30/'Finish Input'!K19 -> 
D34: 3.02 | E34: Equipment | I34: =J34*'Finish Input'!G30 ->  | J34: =ROUND(('Finish Input'!#REF!-('Finish Input'!#REF!/100*'Finish Input'!#REF!))/'Finish Input'!#REF!/'Finish Input'!G30,2) ->  | K34: =J34*'Finish Input'!G30/'Finish Input'!K19 -> 
I35: =============================================
D36: Total Depreciation Cost | I36: =J36*'Finish Input'!G30 ->  | J36: =SUM(J32:J35) ->  | K36: =J36*'Finish Input'!G30/'Finish Input'!K19 -> 
C38: 4. | D38: Investment:
D39: 4.01 | E39: Buildings and Manure Storage | I39: =J39*'Finish Input'!G30 ->  | J39: =#REF! ->  | K39: =J39*'Finish Input'!G30/'Finish Input'!K19 -> 
D40: 4.02 | E40: Equipment | I40: =J40*'Finish Input'!G30 ->  | J40: =ROUND(('Finish Input'!#REF!+('Finish Input'!#REF!/100*'Finish Input'!#REF!))/2*'Finish Input'!#REF!/100/'Finish Input'!G30,2) ->  | K40: =J40*'Finish Input'!G30/'Finish Input'!K19 -> 
I41: ===========================================
D42: Total Investment Cost | I42: =J42*'Finish Input'!G30 ->  | J42: =SUM(J38:J41) ->  | K42: =J42*'Finish Input'!G30/'Finish Input'!K19 -> 
I43: ============================================
C44: TOTAL FIXED COSTS | I44: =J44*'Finish Input'!G30 ->  | J44: =J36+J42 ->  | K44: =J44*'Finish Input'!G30/'Finish Input'!K19 -> 
B46: C. LABOUR
D47: ='Finish Input'!C174 -> 48 | E47: hours/wk. @ | G47: ='Finish Input'!C177 -> 27 | H47: /hour | I47: =J47*'Finish Input'!G30 -> 67400.58 | J47: =ROUND('Finish Input'!C176*'Finish Input'!C177/'Finish Input'!G30,2) -> 5.78 | K47: =J47*'Finish Input'!G30/'Finish Input'!K19 -> 16.90724168
I48: ===============================================
C49: TOTAL COST OF PRODUCTION | I49: =J49*'Finish Input'!G30 ->  | J49: =J29+J44+J47 ->  | K49: =J49*'Finish Input'!G30/'Finish Input'!K19 -> 
C51: BREAK-EVEN PRICE (carcass) | H51: $/100 kg | I51: $/CWT
H52: ---------------------- | I52: -----------------------
C53: Operating Cost | H53: =J29/('Finish Input'!I11*'Finish Input'!I23*'Finish Input'!I22)*1000000 ->  | I53: =H53/2.2046 -> 
C54: Operating & Labour Cost | H54: =H53+J47/('Finish Input'!I11*'Finish Input'!I23*'Finish Input'!I22)*1000000 ->  | I54: =H54/2.2046 -> 
C55: Operating, Labour & Fixed Cost | H55: =H54+J44/('Finish Input'!I11*'Finish Input'!I23*'Finish Input'!I22)*1000000 ->  | I55: =H55/2.2046 -> 
C57: Break-even Price = Cost per Hog Sold / (Slaughter Wt. X Dressing % X Index)
C59: ** Footnote on Weanling Cost: This is not the price paid for the weanling. Because
C60: this figure is expressed on a "per hog sold" basis, it includes death loss.

Sheet Weaner-O (hidden)
B3: =============================================================================
C4: WEANER PIG PRODUCTION COST SUMMARY
B6: =============================================================================
B7: A. | C7: OPERATING COSTS | H7: TOTAL | I7: $/HOG SOLD | J7: $/SOW/YR
C8: 1. | D8: Feed Costs: | H8: ------------------------------------------------------------------------
D9: A1 | E9: Sow Lactation Ration | H9: =ROUND(#REF!*#REF!*#REF!*#REF!/1000*#REF!,2) ->  | I9: =ROUND(J9/'Finish Input'!$H$30,2) ->  | J9: =ROUND(#REF!*#REF!*#REF!*#REF!/1000,2) -> 
D10: 1.02 | E10: Sow Gestation Ration | H10: =ROUND((365-#REF!*#REF!)*#REF!*#REF!/1000*#REF!,2) ->  | I10: =ROUND(J10/'Finish Input'!$H$30,2) ->  | J10: =ROUND((365-#REF!*#REF!)*#REF!*#REF!/1000,2) -> 
D11: 1.03 | E11: Boar Ration | H11: =ROUND(365*#REF!*#REF!/1000*#REF!/#REF!*#REF!,2) ->  | I11: =ROUND(J11/'Finish Input'!$H$30,2) ->  | J11: =ROUND(365*#REF!*#REF!/1000*#REF!/#REF!,2) -> 
D12: 1.04 | E12: Creep Feed | H12: =ROUND(#REF!*#REF!/1000*#REF!*#REF!,2) ->  | I12: =ROUND(J12/'Finish Input'!$H$30,2) ->  | J12: =ROUND(#REF!*#REF!/1000*#REF!,2) -> 
D13: 1.05 | E13: Starter Ration #1 | H13: =ROUND(#REF!*#REF!/1000*#REF!*#REF!,2) ->  | I13: =ROUND(J13/'Finish Input'!$H$30,2) ->  | J13: =ROUND(#REF!*#REF!/1000*#REF!,2) -> 
D14: 1.05 | E14: Starter Ration #2 | H14: =ROUND(#REF!*#REF!/1000*#REF!*#REF!,2) ->  | I14: =ROUND(J14/'Finish Input'!$H$30,2) ->  | J14: =ROUND(#REF!*#REF!/1000*#REF!,2) -> 
H15: ====================================
D16: Total Feed Cost | H16: =J16*#REF! ->  | I16: =ROUND(J16/'Finish Input'!$H$30,2) ->  | J16: =SUM(J8:J15) -> 
C18: 2. | D18: Other Operating Costs:
D19: A7 | E19: Vet. Medicine & Supplies:
E20: Professional Services | H20: =J20*#REF! ->  | I20: =ROUND(J20/'Finish Input'!$H$30,2) ->  | J20: =ROUND(#REF!,2) -> 
E21: Medication | H21: =J21*#REF! ->  | I21: =ROUND(J21/'Finish Input'!$H$30,2) ->  | J21: =ROUND(#REF!,2) -> 
D22: A8 | E22: Maintenance & Repairs | H22: =J22*#REF! ->  | I22: =ROUND(J22/'Finish Input'!$H$30,2) ->  | J22: =ROUND(#REF!*#REF!/100,2) -> 
D23: A9 | E23: Hydro (Heat) | H23: =J23*#REF! ->  | I23: =ROUND(J23/'Finish Input'!$H$30,2) ->  | J23: =ROUND(#REF!*#REF!,2) -> 
D24: 2.04 | E24: Insurance | H24: =(+#REF!+#REF!)*#REF!/100 ->  | I24: =ROUND(J24/'Finish Input'!$H$30,2) ->  | J24: =H24/#REF! -> 
D25: 2.05 | E25: Manure Haulage | H25: =J25*#REF! ->  | I25: =ROUND(J25/'Finish Input'!$H$30,2) ->  | J25: =ROUND(#REF!/1000*#REF!*365,2) -> 
D26: 2.06 | E26: Office Supplies | H26: =J26*#REF! ->  | I26: =ROUND(J26/'Finish Input'!$H$30,2) ->  | J26: =ROUND((500+(2*#REF!))/#REF!,2) -> 
D27: 2.07 | E27: Marketing & Transportation | H27: =J27*#REF! ->  | I27: =ROUND(J27/'Finish Input'!$H$30,2) ->  | J27: =ROUND(#REF!*#REF!,2) -> 
D28: 2.08 | E28: Sow Replacement | H28: =J28*#REF! ->  | I28: =ROUND(J28/'Finish Input'!$H$30,2) ->  | J28: =ROUND(#REF!/100*(#REF!-(#REF!*#REF!/100)),2) -> 
D29: 2.09 | E29: Boar Replacement | H29: =J29*#REF! ->  | I29: =ROUND(J29/'Finish Input'!$H$30,2) ->  | J29: =ROUND(#REF!/100*#REF!*(#REF!-(#REF!*#REF!/100))/#REF!,2) -> 
D30: 2.09 | E30: Property Taxes | H30: =#REF! ->  | I30: =ROUND(J30/'Finish Input'!$H$30,2) ->  | J30: =H30/#REF! -> 
H31: ====================================
E32: Subtotal Operating Costs | H32: =SUM(H15:H31) ->  | I32: =ROUND(J32/'Finish Input'!$H$30,2) ->  | J32: =H32/#REF! -> 
D33: 2.10 | E33: Interest on Operating Cost | H33: =J33*#REF! ->  | I33: =#REF! ->  | J33: =I33*'Finish Input'!H30 -> 
H34: ====================================
C35: TOTAL OPERATING COSTS | H35: =J35*#REF! ->  | I35: =ROUND(J35/'Finish Input'!$H$30,2) ->  | J35: =SUM(J32:J33) -> 
B37: B. | C37: FIXED COSTS
C38: 3. | D38: Depreciation:
D39: 3.01 | E39: Buildings and Manure Storage | H39: =J39*#REF! ->  | I39: =ROUND(J39/#REF!,2) ->  | J39: =#REF! -> 
D40: 3.02 | E40: Equipment | H40: =J40*#REF! ->  | I40: =ROUND(J40/#REF!,2) ->  | J40: =ROUND((#REF!-(#REF!/100*#REF!))/#REF!,2) -> 
H41: ====================================
D42: Total Depreciation Cost | H42: =J42*#REF! ->  | I42: =ROUND(J42/#REF!,2) ->  | J42: =SUM(J38:J41) -> 
C44: 4. | D44: Investment:
D45: 4.01 | E45: Buildings and Manure Storage | H45: =J45*#REF! ->  | I45: =ROUND(J45/#REF!,2) ->  | J45: =#REF! -> 
D46: 4.02 | E46: Equipment | H46: =J46*#REF! ->  | I46: =ROUND(J46/#REF!,2) ->  | J46: =ROUND((#REF!+(#REF!/100*#REF!))/2*#REF!/100,2) -> 
D47: 4.03 | E47: Breeding Herd | H47: =J47*#REF! ->  | I47: =ROUND(J47/#REF!,2) ->  | J47: =ROUND(#REF!*#REF!/100,2) -> 
H48: ====================================
D49: Total Investment Cost | H49: =J49*#REF! ->  | I49: =ROUND(J49/#REF!,2) ->  | J49: =SUM(J44:J48) -> 
H50: ====================================
C51: TOTAL FIXED COSTS | H51: =J51*#REF! ->  | I51: =ROUND(J51/#REF!,2) ->  | J51: =J42+J49 -> 
B53: C. | C53: LABOUR
D54: =#REF! ->  | E54: hours/wk. | H54: =J54*#REF! ->  | I54: =ROUND(J54/#REF!,2) ->  | J54: =ROUND(#REF!*#REF!*52/#REF!,2) -> 
H55: ====================================
C56: TOTAL COST OF PRODUCTION | H56: =J56*#REF! ->  | I56: =ROUND(J56/#REF!,2) ->  | J56: =J35+J51+J54 -> 
B58: =============================================================================
F59: Revenue per pig sold: | J59: ='Finish Input'!#REF! -> 
F61: Net of Operating Cost | J61: =IF(J59=0,0,J59-I35) -> 
F62: Net of Operating & Labour Cost | J62: =IF(J59=0,0,J61-I54) -> 
F63: Net of Operating, Labour & Fixed Cost | J63: =IF(J59=0,0,J62-I51) -> 

Sheet Feed-Summary
A2: Summary of Purchased Feeds Used
C3: ='Finish Input'!G30 -> 11661 | D3: Pigs available for marketing (includes lightweights)
E5: Total per | F5: Total | G5: Total | H5: Total per
E6: Pig Mkt | F6: per Year | G6: per Month | H6: Pig Mkt
E7: (kgs) | F7: (tonnes) | G7: (tonnes) | H7: (lbs)
B8: ='Finish Input'!G37 -> Grower 1 | E8: ='Finish Input'!G40 -> 27.3 | F8: =(E8*$C$3)/1000 -> 318.3453 | G8: =F8/12 -> 26.528775 | H8: =E8*2.2046 -> 60.18558
B9: ='Finish Input'!H37 -> Grower 2 | E9: ='Finish Input'!H40 -> 154 | F9: =(E9*$C$3)/1000 -> 1795.794 | G9: =F9/12 -> 149.6495 | H9: =E9*2.2046 -> 339.5084
B10: ='Finish Input'!I37 -> Finisher | E10: ='Finish Input'!I40 -> 98 | F10: =(E10*$C$3)/1000 -> 1142.778 | G10: =F10/12 -> 95.2315 | H10: =E10*2.2046 -> 216.0508
B11: Total | E11: =SUM(E8:E10) -> 279.3 | F11: =SUM(F8:F10) -> 3256.9173 | G11: =SUM(G8:G10) -> 271.409775 | H11: =SUM(H8:H10) -> 615.74478
A15: Depreciation | C15: = | D15: Original cost - Salvage Value
D16: Useful Life
A18: Return on Assets (ROA) | E18: Net Income + Operating Interest + Investment Interest
E19: - Value of Unpaid Family and Operator Labour
F20: Total Assets
A22: Total Assets | D22: Definition: Total Assets includes the buildings,
D23: equipment, land, manure storage and breeding stock valued at
D24: replacement cost, plus the value of market livestock
D25: on inventory.
